Cogmind - Beta 13 @@@ ROGUE MODE // 2024.04.11 @ 22:26:13 Player: GregoriusTechneticies Result: Destroyed by G-47 Trooper with Particle Gun Performance ------------- Evolutions (2) 1000 Regions Visited (3) 600 Robots Destroyed (40) 200 Value Destroyed (438) 438 Prototype IDs (0) 0 Alien Tech Used (0) 0 Bonus (0) 0 TOTAL SCORE: 2238 Bonus ------- None Cogmind --------- Core Integrity 0/550 Matter 249/300 Energy 159/160 System Corruption 0% Temperature Cool (27) Movement Core (100) Ox1 Location -8/Materials Parts ------- > --- POWER (1) -------- Light Nuclear Core > --- PROPULSION (4) --- (None) > --- UTILITY (4) ------ Terrain Scan Processor > --- WEAPON (2) ------- (None) > --- INVENTORY (5) ---- Improved Terrain Scanner Maul Peak State ------------ > --- POWER ------------ Light Ion Engine > --- PROPULSION ------- Flight Unit Flight Unit > --- UTILITY ---------- Subdweller Optics Improved Terrain Scanner Terrain Scan Processor > --- WEAPON ----------- Medium Laser Light Assault Rifle > --- INVENTORY -------- Structural Scanner Seismic Detector Mining Laser Mining Claw [Rating: 12] Favorites ----------- Power Light Ion Engine Engine Light Ion Engine Power Core Light Nuclear Core Propulsion Flight Unit Treads Light Treads Flight Unit Flight Unit Utility Improved Terrain Scanner Device Improved Terrain Scanner Storage Small Storage Unit Processor Terrain Scan Processor Weapon Medium Laser Energy Gun Medium Laser Ballistic Gun Light Assault Rifle Special Weapon Mining Laser Slashing Weapon Mining Claw Build | -11 -10 -10 -8 ------- Run | Yrd Mat Sub Mat Slots Evolved 4 | . . . 4 Power . | . . . . Propulsion 2 | . . . 2 Utility 2 | . . . 2 Weapon . | . . . . Parts Attached 51 | 8 19 9 15 Power 8 | 1 2 1 4 Engine 7 | 1 2 1 3 Core 1 | . . . 1 Reactor . | . . . . Propulsion 12 | 2 9 . 1 Treads 5 | 2 2 . 1 Leg . | . . . . Wheel . | . . . . Hover . | . . . . Flight 7 | . 7 . . Utility 22 | 3 5 8 6 Device 20 | 2 5 7 6 Storage 1 | 1 . . . Processor 1 | . . 1 . Hackware . | . . . . Protection . | . . . . Artifact . | . . . . Weapon 9 | 2 3 . 4 Energy Gun 5 | 2 2 . 1 Energy Cannon . | . . . . Ballistic Gun 1 | . 1 . . Ballistic Cannon . | . . . . Launcher . | . . . . Special Weapon 1 | . . . 1 Impact Weapon . | . . . . Slashing Weapon 2 | . . . 2 Piercing Weapon . | . . . . Special Melee Weapon . | . . . . Unidentified Prototypes . | . . . . Parts Lost 13 | . . 1 12 Power 3 | . . 1 2 Propulsion 2 | . . . 2 Utility 4 | . . . 4 Weapon 4 | . . . 4 Highest Loss Streak 9 | . . 1 9 To Critical Strikes . | . . . . Average Slot Usage (%) 95 | . 99 100 41 Engine 13 | . 13 14 3 Treads 6 | . 23 . 2 Flight 19 | . 4 28 6 Device 17 | . 28 14 10 Processor 9 | . . 14 9 Energy Gun 15 | . 24 14 3 Ballistic Gun 10 | . 3 14 3 Naked Turns . | . . . . Heaviest Build 12 | 12 9 7 9 Greatest Support 40 | 40 40 8 22 Greatest Overweight (x) 2 | 1 2 . 2 Average Overweight (x) . | . . . . Largest Inventory Capacity 8 | 8 5 5 5 Average Capacity 5 | 6 5 5 5 Most Carried 5 | 5 5 5 5 Average Carried 4 | 3 4 4 3 Final Capacity 5 | 5 5 5 5 Final Carried 5 | 5 5 5 2 Class Distribution -------------------- 65% | Scavenger-Mutant 33% | Mutant Dominant Class ---------------- Mutant | -10/Materials Scavenger-Mutant | -10/Subcaves Mutant | -8/Materials Resources | -11 -10 -10 -8 ----------- Run | Yrd Mat Sub Mat Matter Collected 635 | 280 217 91 47 Remotely . | . . . . Salvage Created 1235 | 343 775 27 90 Parts 100 | 35 58 3 4 Haulers Intercepted 2 | . 2 . . Recyclers Shooed 6 | . 5 . 1 Parts Field Recycled . | . . . . Retrieved Matter . | . . . . Parts Self-Destructed 4 | . . 4 . Prevented . | . . . . Kills | -11 -10 -10 -8 ------- Run | Yrd Mat Sub Mat Combat Hostiles Destroyed 11 | . 7 2 2 Guns 10 | . 7 2 1 Classes Destroyed 7 | 3 4 . . Worker 7 | 4 3 . . Builder 6 | . 6 . . Tunneler 10 | 9 1 . . Hauler 2 | . 2 . . Recycler 4 | 1 3 . . Swarmer 5 | . 3 2 . Grunt 6 | . 4 . 2 Best Kill Streak 6 | 6 4 2 1 Combat Bots Only 3 | . 3 2 1 Max Kills in Single Turn 2 | 2 2 1 1 Gunslinging 1 | . 1 . . Exploded . | . . . . Melee . | . . . . Uniques/NPCs Destroyed . | . . . . Combat | -11 -10 -10 -8 -------- Run | Yrd Mat Sub Mat Hostile Shots Fired 148 | . 34 15 99 Missed 35 | . 7 6 22 Damage Taken 1527 | . 313 72 1142 Core 654 | . 91 7 556 Absorbed by Shields . | . . . . Core Remaining (%) 80 | 100 . 60 . Volleys Fired 110 | 25 60 6 19 Largest 2 | 2 2 2 2 Hottest 100 | 90 100 70 100 Shots Fired 209 | 50 120 12 27 Gun 208 | 50 120 12 26 Cannon . | . . . . Launcher . | . . . . Special 1 | . . . 1 Kinetic 41 | . 27 6 8 Thermal 168 | 50 93 6 19 Explosive . | . . . . Electromagnetic . | . . . . Robot Hit Streak 13 | 10 13 5 8 Robot Miss Streak 5 | 2 3 5 4 Penetration Max . | . . . . Secondary Targets 2 | . 2 . . Max Gunslinging Chain 1 | . 1 . . Shots Hit Robots 127 | 30 74 5 18 Core Hits 54 | 15 33 3 3 Critical Kills 1 | . . . 1 Critical Parts Destroyed . | . . . . Critical Strikes 7 | 1 4 . 2 Burn 6 | 1 4 . 1 Destroy 1 | . . . 1 Melee Attacks 9 | . . . 9 Impact . | . . . . Slashing 9 | . . . 9 Piercing . | . . . . Sneak Attacks . | . . . . Combat Hostiles . | . . . . Follow-up Attacks . | . . . . Damage Inflicted 1489 | 369 851 50 219 Guns 1489 | 369 851 50 219 Cannons . | . . . . Explosions . | . . . . Melee . | . . . . Ramming . | . . . . Kinetic 213 | . 133 25 55 Thermal 1276 | 369 718 25 164 Explosive . | . . . . Electromagnetic . | . . . . Impact . | . . . . Slashing . | . . . . Piercing . | . . . . Highest Corruption . | . . . . Average Corruption . | . . . . Corruption Purged . | . . . . Corruption Blocked . | . . . . Overload Shots . | . . . . Overflow Damage . | . . . . Projectiles . | . . . . Explosions . | . . . . Melee . | . . . . Knockbacks . | . . . . Impact . | . . . . Kinetic . | . . . . Secondary . | . . . . Self-Inflicted Damage . | . . . . Shots . | . . . . Rammed . | . . . . Targets Rammed . | . . . . Kicked . | . . . . Crushed . | . . . . Highest Temperature 327 | 180 327 . 120 Average Temperature 67 | 65 73 . 38 Received Heat Transfer 483 | . 159 . 324 Effects 1 | . 1 . . Damage (minor) 1 | . 1 . . Siege Activations . | . . . . Robots Corrupted . | . . . . Combat Hostiles . | . . . . Parts Fried . | . . . . Impact Corruptions . | . . . . Robots Melted 1 | . . . 1 Combat Hostiles 1 | . . . 1 Parts Melted 7 | 3 4 . . Heat Transferred 3993 | 1053 2311 74 555 Parts Sabotaged . | . . . . Parts Stolen . | . . . . Parts Stripped . | . . . . Power Chain Reactions . | . . . . Alert | -11 -10 -10 -8 ------- Run | Yrd Mat Sub Mat Peak Influence 223 | 70 223 . 30 Initial 45 | . 45 . . Average 65 | 38 95 . 6 Maximum Alert Level 1 | . 1 . . Low Security (%) 93 | 100 88 . 100 Level 1 6 | . 11 . . Level 2 . | . . . . Level 3 . | . . . . Level 4 . | . . . . Level 5 . | . . . . High Security . | . . . . Max Security . | . . . . Squads Dispatched 1 | . . . 1 Investigation 1 | . . . 1 Extermination . | . . . . Reinforcement . | . . . . Assault . | . . . . Garrison . | . . . . Intercept . | . . . . Searches Triggered . | . . . . Construction Impeded . | . . . . Haulers Reinforced . | . . . . Active Scanning Responses . | . . . . Cargo Convoy Interrupts . | . . . . Stealth | -11 -10 -10 -8 --------- Run | Yrd Mat Sub Mat Distress Signals 1 | . . . 1 Communications Jammed . | . . . . Distress Signals . | . . . . Times Spotted 23 | . 9 6 8 Peak Tracking Total 6 | . 3 4 6 Tactical Retreats 3 | . 1 1 1 Traps | -11 -10 -10 -8 ------- Run | Yrd Mat Sub Mat Traps Triggered . | . . . . Indirectly . | . . . . Trap Hack Attempts . | . . . . Triggered . | . . . . Disarmed . | . . . . Reprogrammed . | . . . . Reused . | . . . . Traps Extracted . | . . . . Installed . | . . . . Triggered . | . . . . Machines | -11 -10 -10 -8 ---------- Run | Yrd Mat Sub Mat Machines Disabled 1 | . . . 1 Max in Single Turn 1 | . . . 1 Machines Repaired . | . . . . Machines Dismantled . | . . . . Machines Sabotaged . | . . . . Overloaded Fab Kills . | . . . . Hacking | -11 -10 -10 -8 --------- Run | Yrd Mat Sub Mat Machines Accessed 4 | . 2 1 1 Terminals 2 | . 2 . . Fabricators . | . . . . Repair Stations 1 | . . . 1 Recycling Units . | . . . . Scanalyzers . | . . . . Garrison Access . | . . . . Total Hacks 12 | . 5 4 3 Successful 8 | . 3 4 1 Failed 4 | . 2 . 2 Catastrophic 1 | . 1 . . Database Lockouts . | . . . . Manual 5 | . 5 . . Terminals 5 | . 5 . . Fabricators . | . . . . Repair Stations 3 | . . . 3 Recycling Units . | . . . . Scanalyzers . | . . . . Garrison Access . | . . . . Terminal Hacks 5 | . 1 4 . Record 4 | . . 4 . Terminal Index 1 | . 1 . . Fabricator Hacks . | . . . . Repair Station Hacks 1 | . . . 1 Scan Component 1 | . . . 1 Recycling Unit Hacks . | . . . . Scanalyzer . | . . . . Garrison Access Hacks . | . . . . Unauthorized Hacks 2 | . 2 . . Terminals 2 | . 2 . . Botnet 2 | . 2 . . Fabricators . | . . . . Repair Stations . | . . . . Recycling Units . | . . . . Scanalyzers . | . . . . Garrison Access . | . . . . Data Cores Recovered . | . . . . Used . | . . . . Hacking Detections 3 | . 2 . 1 Full Trace Events 2 | . 1 . 1 Feedback Events . | . . . . Feedback Blocked . | . . . . Robot Schematics Acquired . | . . . . Robots Built . | . . . . Authchips . | . . . . Time . | . . . . Total Robot Build Rating . | . . . . Part Schematics Acquired . | . . . . Parts Built . | . . . . Authchips . | . . . . Time . | . . . . Total Part Build Rating . | . . . . Parts Repaired . | . . . . Time . | . . . . Parts Recycled . | . . . . Recycled Matter . | . . . . Retrieved Matter . | . . . . Retrieved Components . | . . . . Parts Scanalyzed . | . . . . Part Schematics Acquired . | . . . . Parts Damaged . | . . . . Bothacking | -11 -10 -10 -8 ------------ Run | Yrd Mat Sub Mat Used RIF Installer . | . . . . Robots Hacked . | . . . . Non-combat . | . . . . Combat . | . . . . Robot Hacks Applied . | . . . . Relay Couplers Released . | . . . . Fabnet Peak Effective % . | . . . . Robots Rewired . | . . . . Allies Hacked . | . . . . Hacks Repelled . | . . . . Allies | -11 -10 -10 -8 -------- Run | Yrd Mat Sub Mat Total Allies . | . . . . Largest Group . | . . . . Highest-Rated Group . | . . . . Highest-Rated Ally . | . . . . Total Orders . | . . . . Ally Attacks . | . . . . Total Damage . | . . . . Kills . | . . . . Allies Corrupted . | . . . . Allies Melted . | . . . . Intel | -11 -10 -10 -8 ------- Run | Yrd Mat Sub Mat Robot Analysis Total . | . . . . Derelict Logs Recovered 1 | . . 1 . Drone Launches . | . . . . Drone Recoveries . | . . . . Exploration | -11 -10 -10 -8 ------------- Run | Yrd Mat Sub Mat Turns Passed 3007 | 353 721 1722 211 Spaces Moved 1249 | 169 386 567 127 Core 91 | 20 6 . 65 Treads 405 | 149 220 . 36 Legs . | . . . . Wheels . | . . . . Hover . | . . . . Flight 753 | . 160 567 26 Fastest Speed 37 | 50 37 37 37 Average Speed 78 | 147 108 37 84 Slowest Speed 160 | 160 160 37 150 Overloaded Moves . | . . . . Propulsion Burnouts . | . . . . Robots Hopped . | . . . . Cave-ins Triggered . | . . . . Exploration Rate (%) 18 | 5 25 32 13 Regions Visited 3 Branch Regions 1 Pre-discovered Areas 1 | . . 1 . Known Exits Taken . | . . . . Unknown Exits Taken 3 | 1 1 1 . Scrap Searched . | . . . . Spaces Dug 2 | . . . 2 Terrain Destroyed 2 | . . . 2 Melee 1 | . . . 1 Projectile 1 | . . . 1 AOE . | . . . . Terrain Rammed . | . . . . Walls Destroyed . | . . . . Machines Disabled . | . . . . Actions | -11 -10 -10 -8 --------- Run | Yrd Mat Sub Mat Total 3058 | 228 581 2064 185 Wait 1572 | . 86 1480 6 Move 1246 | 168 385 566 127 Hop . | . . . . Pick Up 34 | 19 7 2 6 Fast Attach 10 | 1 9 . . Attach 18 | 6 . 2 10 Detach 2 | . . . 2 Swap 23 | 1 10 7 5 Drop 34 | 8 24 1 1 Fire 110 | 25 60 6 19 Melee 9 | . . . 9 Ram . | . . . . Kick . | . . . . Crush . | . . . . Escape Stasis . | . . . . Rewire . | . . . . Trap . | . . . . Miscellaneous . | . . . . Route ------- -11/Scrapyard -10/Materials (discovered 2 exits: [*Mat] / *Sub) -10/Subcaves (discovered 2 exits: *Mat / [*Rec]) -8/Materials (discovered 3 exits: Fac x2 / Sto) History --------- Turn | Location | Event 5 | -11/Scrapyard | Discovered new exit (range 15) 354 | -11/Scrapyard | Entered Materials 355 | -10/Materials | Build established: Mutant 919 | -10/Materials | Discovered new exit (range 8) 1068 | -10/Materials | Discovered new exit (range 8) 1075 | -10/Materials | Entered Subcaves 1174 | -10/Subcaves | Build established: Scavenger-Mutant 2275 | -10/Subcaves | Learned 4 Materials zone layouts 2517 | -10/Subcaves | A swath of the cavern ceiling suddenly collapsed 2517 | -10/Subcaves | Visited Clippyterm 2519 | -10/Subcaves | Learned location of Extension (-6) 2772 | -10/Subcaves | Discovered new exit (range 10) 2781 | -10/Subcaves | Discovered new exit (range 13) 2797 | -10/Subcaves | Entered Materials 2797 | -8/Materials | Evolved 4 slots: Propulsion x2, Utility x2 2798 | -8/Materials | Identified exit to Storage 2798 | -8/Materials | Identified exit to Factory 2914 | -8/Materials | Core integrity fell below 50% 2938 | -8/Materials | Lost 9 parts (2p2n3u2w) 2999 | -8/Materials | Core integrity fell below 20% 3008 | -8/Materials | Destroyed by G-47 Trooper with Particle Gun Last Messages --------------- 02907_ Med. Laser destroyed. 02907_ Acquired 47 matter. 02910_ Penetrated by Slug. 02910_ R-06 Scavenger collects Imp. Heat Sink. 02913_ Penetrated by Slug. 02916_ Acquired Adv. Treads. 02938_ Terminal disabled. 02946_ Mining Laser destroyed. 02952_ Acquired Lgt. Nuclear Core. 02956_ Penetrated by Slug. 02956_ Terminal disabled. 02975_ Acquired Imp. Terrain Scanner. 02977_ Slug penetrates Wall. 02980_ Adv. Treads severed. 02989_ Acquired Maul. 02998_ Slug penetrates Wall. 02999_ Mining Claw destroyed. 03002_ Imp. Terrain Scanner destroyed. 03004_ Penetrated by Slug. 03008_ Critical hit (Burn: +37). Map ----- +----------------------------------------------------+ | | | | | | | | | | | | | | | | | | | | | | | | | | | | | | | | | ?????????????###############???????????????????? | | ?????????????# """ """ """ #???????????????????? | | ?????????????# """ """ """ #???????????#???????? | | ?????????????# """ """ """ #???###########?????? | | ?????????????# ##??# #?????? | | ?????????????# "#??# """ """ #?????? | | ?????????????# ##?## """ """ #####?? | | ?????????????###;##;#+##g###???# """ """ # #?? | | ??????????????# h#?????# """ """ # < #?? | | ??????????????# @ ##??#?# # #?? | | ??????????????# ;###### #?????# + #?? | | ??????????? ??# H#?????# #?????# # #?? | | ?????????????## #######+###???########### #?? | | ????????###+## # #????# # #?? | | ????????# =# #????# """ # #?? | | ????????# /% #????# """ # #?? | | ????????###+## " """ #????# """ # #?? | | ?????????????## ## """"" #????# + #?? | | ??????????????# ## """"" #????# """ # #?? | | ??????????????# ## """"" #????# """ # #?? | | ??????????????# ## """ #????# """ # #?? | | ??????????????# ## #????# # #?? | | ??????????????# #####+#####????########## #?? | | ??????????????# #???# #?????????????????# #?? | | ??????????????# #???# #????????###??????# #?? | | # "T" # #???# #?#?# ##########??????????????? | | # # #??## ##??# # #??????????????? | | # # ####* #### # """ #??????????????? | | # + # """ #??????????????? | | # # / """ #??????????????? | | # ###+## ### ## #??????????????? | | # ## ######## ##"" """ #??????????????? | | # # ####??## ##"T """ #??????????????? | | # ## #?####?# ## " """ #??????????????? | +----------------------------------------------------+ Best States ------------- Heat Dissipation 31 Energy Generation 10 Energy Capacity 125 Matter Stores 300 Matter Capacity 300 Sight Range 21 Terrain Scan Range 16 Terrain Scan Density 85 Evasion (%) 62 Recoil Reduction 2 Item Schematics ----------------- None Robot Schematics ------------------ None Fabricated ------------ Nothing Alien Tech Used ----------------- None Achievements -------------- None Challenges ------------ None Game ------ Seed CobblerProcessingBlade Manual? 0 Play Time 00:32:38 Cumulative 22.7 hours Start 2024.04.11 @ 21:34:48 End 2024.04.11 @ 22:26:13 Sessions 1 Manual Loads 0 Difficulty Rogue Special Mode None Game No. 26 Rogue 11 Adventurer 0 Explorer 15 Win Type - Total 0 Types 0/0/0/0/0/0/0/0/0 Lore% 14 Gallery% 24 Achievement% 18 Wizard Run 0 Options --------- Layout 1 ASCII 0 Keyboard 0 Movement Mouse Keybinds 0 Fullscreen 1 Font 24/Smallcaps Map View 50x35 Zoom Use 0% Tactical HUD 1 Map Filters NONE Filters NONE Steam 1 RUN: d6a53715-9e15-4fca-86cd-58b5f571b60e